bitfinex-derivatives/quotes_ETHF0:USTF0_20250104
["timestamp","ask_amount","ask_price","bid_price","bid_amount"]
[1736027899049,0.27357,3656.0,3655.9,4.33613849]
[1736027899254,2.1387966,3656.4,3655.9,5.05020435]
[1736027899548,2.1387966,3656.4,3656.2,0.27354]
[1736027899549,0.27354,3656.3,3656.2,0.27354]
[1736027900050,3.12642246,3656.4,3655.9,8.25800435]
[1736027900242,3.39996246,3656.4,3656.3,0.27354]
[1736027900444,1.26116586,3656.4,3656.3,4.57364584]
[1736027900740,1.26116586,3656.4,3656.3,4.30010584]
[1736027901749,1.26116586,3656.4,3656.3,4.57364584]
[1736027901950,1.26116586,3656.4,3656.3,10.78304384]
[1736027902452,0.70653,3656.5,3656.4,0.27353]
[1736027902750,1.69415586,3656.5,3656.4,0.27353]
[1736027903750,1.69415586,3656.5,3656.4,10.78303384]
[1736027909355,1.69415586,3656.5,3656.4,4.33610849]
[1736027910654,1.69415586,3656.5,3656.4,4.06257849]
[1736027910854,1.69415586,3656.5,3656.4,4.33610849]
[1736027911154,1.69415586,3656.5,3656.4,4.06257849]
[1736027911947,1.42062586,3656.5,3656.4,4.33610849]
[1736027912153,0.98762586,3656.5,3656.4,4.33610849]
[1736027913559,0.98762586,3656.5,3656.4,10.78303384]
[1736027914560,1.26114586,3656.5,3656.4,10.78303384]
[1736027914760,0.98762586,3656.5,3656.4,10.78303384]
[1736027915152,0.98762586,3656.5,3656.4,4.33610849]
[1736027915655,1.26114586,3656.5,3656.4,4.33610849]
[1736027915962,0.98762586,3656.5,3656.4,4.33610849]
[1736027916359,1.26114586,3656.5,3656.4,4.33610849]
[1736027917152,2.1387966,3656.8,3656.7,0.27351]
[1736027917461,3.12642246,3656.8,3656.7,0.27351]
[1736027918061,0.98762586,3656.8,3656.7,4.57339208]
[1736027921460,6.33422246,3657.0,3656.7,4.29988208]
[1736027921666,5.3465966,3657.0,3656.9,0.27349]
[1736027922361,3.2078,3657.0,3656.9,0.27349]
[1736027933675,3.48128,3657.0,3656.9,0.27349]
[1736027934078,3.2078,3657.0,3656.9,0.27349]
[1736027934374,3.91868,3657.0,3656.9,0.27349]
[1736027934572,0.71088,3657.0,3656.9,0.27349]
[1736027935171,0.4374,3657.0,3656.9,0.27349]
[1736027935971,0.71088,3657.0,3656.9,0.27349]
[1736027937177,0.4374,3657.0,3656.9,0.27349]
[1736027938373,0.98762586,3657.1,3656.8,4.29988208]
[1736027938573,0.98762586,3657.1,3657.0,0.27348]
[1736027942686,0.98762586,3657.1,3656.9,4.57336208]
[1736027942886,0.70888,3657.0,3656.9,4.57336208]
[1736027943779,1.26110586,3657.1,3657.0,0.27348]
[1736027944188,1.26110586,3657.1,3657.0,0.68838]
[1736027944483,0.98762586,3657.1,3657.0,1.09238]
[1736027945082,2.1387966,3657.2,3657.1,0.27348]
[1736027946184,2.5651966,3657.3,3657.2,0.27347]
[1736027946383,3.55282246,3657.3,3657.2,0.27347]
[1736027946786,2.5651966,3657.3,3657.2,0.27347]
[1736027947682,2.1387966,3657.3,3657.2,0.27347]
[1736027949291,1.26107586,3657.5,3657.4,0.27345]
[1736027949996,0.98762586,3657.5,3657.4,0.27345]
[1736027950387,0.98762586,3657.5,3657.4,4.57253874]
[1736027953282,4.19542586,3657.5,3657.4,4.57253874]
[1736027953586,1.26107586,3657.5,3657.4,4.57253874]
[1736027954588,1.26107586,3657.5,3657.4,0.27345]
[1736027955996,1.26107586,3657.5,3657.4,4.57253874]
[1736027956689,0.98762586,3657.5,3657.4,4.57253874]
[1736027958991,0.98762586,3657.5,3657.4,5.01923874]
[1736027965805,0.98762586,3657.5,3657.4,4.78427702]
[1736027966907,0.98762586,3657.5,3657.4,0.72015]
[1736027968906,1.26107586,3657.5,3657.4,0.72015]
[1736027969907,1.26107586,3657.5,3657.4,4.78488782]
[1736027970098,0.98762586,3657.5,3657.4,4.78488782]
[1736027970909,2.4122366,3657.6,3657.5,0.27345]
[1736027973207,2.4122366,3657.6,3657.5,4.5738066]
[1736027974506,2.1387966,3657.6,3657.5,4.5738066]
[1736027974709,2.4122366,3657.6,3657.5,4.5738066]
[1736027976011,2.1387966,3657.6,3657.5,4.5738066]
[1736027976210,2.4122366,3657.6,3657.5,4.5738066]
[1736027976611,2.1387966,3657.6,3657.5,4.5738066]
[1736027976814,2.1387966,3657.6,3657.5,4.9880066]
[1736027977315,2.1387966,3657.6,3657.5,5.4218066]
[1736027978510,2.1387966,3657.6,3657.5,5.18650526]
[1736027978710,0.2527966,3657.6,3657.5,5.18650526]
[1736027979912,0.2734,3658.1,3658.0,0.27341]
[1736027980220,0.4239,3658.2,3658.1,0.2734]
[1736027980411,3.2081949,3658.3,3658.2,0.27339]
[1736027980610,3.2081949,3658.3,3658.2,1.69411586]
[1736027981117,3.4815749,3658.5,3658.3,0.27339]
[1736027981317,3.2081949,3658.5,3658.3,0.27339]
[1736027981516,3.4815649,3658.5,3658.4,0.27338]
[1736027981909,3.2081949,3658.5,3658.4,0.27338]
[1736027982818,0.72106,3658.7,3658.6,0.27336]
[1736027982819,3.2081949,3658.7,3658.6,0.27336]
[1736027983116,3.2081949,3658.7,3658.6,1.26098586]
[1736027984620,3.2078,3659.2,3659.1,0.27333]
[1736027985413,3.2078,3659.2,3659.1,0.70933]
[1736027986023,3.48112,3659.2,3659.1,0.70933]
[1736027986319,3.2078,3659.2,3659.1,0.70933]
[1736027988420,0.98762586,3659.5,3659.4,0.2733]
[1736027988620,0.27332,3659.3,3659.1,0.70932]
[1736027988816,1.26094586,3659.2,3659.1,0.436]
[1736027989325,0.98762586,3659.2,3659.1,0.70933]
[1736027990516,0.27331,3659.3,3659.1,0.70933]
[1736027994521,1.26093586,3659.4,3659.2,0.27331]
[1736027994727,0.27331,3659.3,3659.2,0.27331]
[1736027995623,0.27331,3659.3,3659.1,1.69694586]
[1736027996820,0.27331,3659.3,3659.1,1.42362586]
[1736027997021,0.27331,3659.3,3659.1,1.69694586]
[1736027998425,0.27332,3659.2,3659.1,1.69694586]
[1736027999131,0.98762586,3659.4,3659.1,1.69694586]
[1736027999332,0.27332,3659.3,3659.1,1.69694586]
[1736028000233,1.26093586,3659.4,3659.2,0.27332]
[1736028000436,3.89629,3659.6,3659.4,0.2733]
[1736028000631,0.68849,3659.6,3659.5,0.4207]
[1736028000833,0.4152,3659.6,3659.5,1.68162586]
[1736028001025,0.4152,3659.6,3659.5,1.40832586]
[1736028001331,1.67611586,3659.6,3659.5,0.4207]
[1736028001519,2.09081586,3659.6,3659.5,0.4207]
[1736028003029,0.4152,3659.6,3659.5,0.694]
[1736028003224,0.4152,3659.6,3659.5,0.4207]
[1736028003430,0.68849,3659.6,3659.5,0.4207]
[1736028003630,0.68849,3659.6,3659.5,0.694]
[1736028003932,0.68849,3659.6,3659.5,0.4207]
[1736028004133,0.4152,3659.6,3659.5,0.694]
[1736028005035,0.4152,3659.6,3659.5,1.68162586]
[1736028005434,0.68849,3659.6,3659.5,1.68162586]
[1736028005934,0.4152,3659.6,3659.5,1.68162586]
[1736028006431,0.27327,3659.9,3659.8,0.27327]
[1736028007031,3.2078,3660.0,3659.9,0.27327]
[1736028007231,3.2078,3660.0,3659.9,1.26089586]
[1736028007727,3.2078,3660.0,3659.9,0.71807]
[1736028008532,1.26088586,3660.1,3659.9,0.71807]
[1736028008830,1.26087586,3660.1,3660.0,0.27326]
[1736028009131,0.27326,3660.0,3659.9,0.4448]
[1736028009338,0.27326,3660.0,3659.9,0.71807]
[1736028009635,4.46868586,3660.1,3659.9,0.71807]
[1736028010239,0.27326,3660.0,3659.9,0.4448]
[1736028011332,0.2733,3659.5,3659.3,0.27331]
[1736028011628,0.6942,3659.4,3659.3,0.4207]
[1736028013332,0.6942,3659.4,3659.3,0.69401]
[1736028015628,3.48109,3659.6,3659.3,0.4207]
[1736028015830,3.48109,3659.6,3659.5,0.2733]
[1736028016132,1.2683,3659.9,3659.4,0.98762586]
[1736028016335,0.409,3659.9,3659.8,0.27327]
[1736028016537,0.27326,3660.1,3660.0,0.27325]
[1736028017537,1.26087586,3660.2,3660.0,0.27325]
[1736028017941,0.27325,3660.1,3660.0,0.27325]
[1736028019244,0.27324,3660.3,3659.9,0.98762586]
[1736028019435,0.27324,3660.3,3660.1,1.26087586]
[1736028019839,0.27324,3660.3,3660.1,1.68177586]
[1736028020037,0.27325,3660.2,3660.1,1.40852586]
[1736028020237,0.27325,3660.2,3660.1,0.4209]
[1736028021338,0.27325,3660.2,3660.1,0.69415]
[1736028021643,0.27325,3660.2,3660.1,0.4209]
[1736028022934,0.27325,3660.2,3660.1,0.69415]
[1736028023135,0.27325,3660.2,3660.1,0.4209]
[1736028024839,0.98762586,3660.2,3659.8,0.4155]
[1736028025148,0.27327,3659.9,3659.8,0.4155]
[1736028025536,0.69757,3659.9,3659.8,0.4155]
[1736028026341,0.4243,3659.9,3659.6,7.49701977]
[1736028026540,0.27328,3659.7,3659.6,7.49701977]
[1736028026842,0.27328,3659.7,3659.6,3.48109]
[1736028027546,0.27329,3659.6,3659.5,4.28921977]
[1736028027745,1.26091586,3659.6,3659.5,4.28921977]
[1736028029143,1.26091586,3659.6,3659.2,5.55016563]
[1736028029144,0.27331,3659.4,3659.2,5.55016563]
[1736028029648,0.27331,3659.3,3659.2,5.55016563]
[1736028029838,0.4195,3659.5,3659.3,0.27331]
[1736028029839,0.27331,3659.4,3659.3,0.27331]
[1736028030144,0.27331,3659.3,3659.2,5.55016563]
[1736028030344,0.27331,3659.3,3659.2,4.56253977]
[1736028031051,0.27331,3659.4,3659.3,0.27331]
[1736028032343,0.4195,3659.5,3659.2,4.28921977]
[1736028032548,0.6928,3659.5,3659.4,0.2733]
[1736028033145,0.4195,3659.5,3659.3,4.28921977]
[1736028033462,0.2733,3659.4,3659.3,4.56252977]
[1736028034152,0.4195,3659.5,3659.3,4.28921977]
[1736028034450,0.6928,3659.5,3659.4,0.2733]
[1736028035248,0.4195,3659.5,3659.3,4.10683936]
[1736028035546,0.2733,3659.4,3659.3,4.38014936]
[1736028036249,0.2733,3659.4,3659.3,0.27331]
[1736028036656,0.6801,3659.4,3659.3,0.27331]
[1736028038554,0.6801,3659.4,3659.3,4.38058312]
[1736028040152,0.4068,3659.4,3659.3,4.38058312]
[1736028040853,0.6801,3659.4,3659.3,4.38058312]
[1736028041442,0.6801,3659.4,3659.3,10.82872382]
[1736028041847,0.4068,3659.4,3659.3,10.82872382]
[1736028042753,0.4068,3659.4,3659.3,4.38058312]
[1736028043769,0.4068,3659.4,3659.3,4.79158312]
[1736028046965,0.4068,3659.4,3659.3,11.23972382]
[1736028048168,7.1282749,3659.8,3659.7,0.27328]
[1736028048367,7.5631749,3659.8,3659.7,0.27328]
[1736028049262,7.2898949,3659.8,3659.3,10.55541382]
[1736028049457,0.27329,3659.7,3659.6,0.27329]
[1736028049864,4.0817,3659.8,3659.6,4.56492265]
[1736028050064,4.35498,3659.8,3659.7,0.27328]
[1736028051068,7.97323576,3659.8,3659.7,0.27328]
[1736028051663,7.69995576,3659.8,3659.5,4.29163265]
[1736028051866,0.27328,3659.7,3659.6,0.27329]
[1736028052858,0.27328,3659.7,3659.6,0.67879]
[1736028055368,3.2081949,3659.8,3659.7,0.27328]
[1736028055572,3.2081949,3659.8,3659.7,1.67583923]
[1736028056073,3.2081949,3660.0,3659.9,0.27327]
[1736028057672,0.27325,3660.1,3660.0,0.27326]
[1736028058061,0.98605923,3660.1,3659.9,10.55486264]
[1736028058271,0.27326,3660.0,3659.9,10.82812264]
[1736028059161,1.09486,3660.0,3659.9,10.55486264]
[1736028059367,1.09486,3660.0,3659.9,4.29250242]
[1736028060768,1.09486,3660.0,3659.7,6.4481407]
[1736028060769,0.27328,3659.7,3659.6,4.29250242]
[1736028062171,4.20912444,3659.8,3659.5,4.56579242]
[1736028062374,0.27329,3659.6,3659.5,4.56579242]
[1736028063263,0.27329,3659.6,3659.5,4.29250242]
[1736028064471,1.25934923,3659.6,3659.5,4.29250242]
[1736028064979,1.25934923,3659.6,3659.5,4.56580242]
[1736028065277,1.25934923,3659.6,3659.5,4.29250242]
[1736028065573,0.27329,3659.6,3659.5,4.56580242]
[1736028065767,0.27329,3659.6,3659.5,4.29250242]
[1736028068877,1.25934923,3659.6,3659.5,4.29250242]
[1736028069568,1.70024923,3659.6,3659.5,4.29250242]
[1736028070875,0.2733,3659.5,3659.4,4.29250242]
[1736028071076,0.68,3659.5,3659.4,4.29250242]
[1736028072768,3.90306521,3659.5,3659.4,4.29250242]
[1736028079982,3.49636521,3659.5,3659.4,5.27856165]
[1736028080285,3.49636521,3659.5,3659.4,5.55186165]
[1736028080583,3.49636521,3659.5,3659.4,5.27856165]
[1736028081376,3.49636521,3659.5,3659.4,11.54552717]
[1736028081377,0.2733,3659.5,3659.4,11.54552717]
[1736028081781,0.2733,3659.5,3659.4,11.81882717]
[1736028082177,3.22306521,3659.7,3659.4,11.54552717]
[1736028082380,3.22306521,3659.7,3659.6,1.25934923]
[1736028084084,0.27327,3659.8,3659.7,0.27328]
[1736028084284,0.27327,3659.8,3659.7,0.68488]
[1736028084484,0.27327,3659.8,3659.7,1.11118]
[1736028085189,0.27327,3659.8,3659.7,5.41051265]
[1736028085788,0.27327,3659.8,3659.7,5.13723265]
[1736028086086,1.25932923,3659.8,3659.7,5.41051265]
[1736028086384,1.25932923,3659.8,3659.7,5.13723265]
[1736028086581,0.27327,3659.8,3659.7,5.13723265]
[1736028087882,1.25932923,3659.8,3659.7,5.13723265]
[1736028088887,4.89245035,3659.8,3659.7,0.8379]
[1736028089086,4.89245035,3659.8,3659.7,0.4263]
[1736028089286,4.89245035,3659.8,3659.6,4.29933265]
[1736028089287,0.27328,3659.7,3659.6,4.29933265]
[1736028089486,0.69568,3659.7,3659.6,4.29933265]
[1736028090179,0.69568,3659.7,3659.4,4.72923265]
[1736028090180,0.83245591,3659.7,3659.4,4.72923265]
[1736028090385,0.2733,3659.5,3659.4,4.72923265]
[1736028091181,1.3483,3659.5,3659.4,4.29933265]
[1736028091386,9.9621,3659.5,3659.4,0.47081265]
[1736028091889,4.9621,3659.5,3659.4,0.47081265]
[1736028092490,9.9621,3659.5,3659.4,2.65e-06]
[1736028093291,14.26377114,3659.5,3658.5,0.8499]
[1736028093495,0.98605923,3658.6,3658.5,0.8499]
[1736028094289,0.27336,3658.6,3658.5,0.8499]
[1736028095491,0.27336,3658.6,3658.5,0.4466]
[1736028101195,7.53411255,3658.7,3657.7,6.44899898]
[1736028101390,0.2734,3658.2,3658.0,0.27341]
[1736028102400,7.53411255,3658.7,3657.8,0.441]
[1736028102693,0.27339,3658.3,3657.8,0.441]
[1736028103095,0.27339,3658.3,3658.0,0.2734]
[1736028103295,7.53411255,3658.7,3658.0,0.2734]
[1736028103496,7.53411255,3658.7,3657.8,0.441]
[1736028103497,2.18638493,3658.4,3657.8,0.441]
[1736028103692,0.27342,3658.0,3657.8,0.441]
[1736028103894,0.27342,3658.0,3657.8,0.71442]
[1736028104791,0.27342,3657.9,3657.8,0.441]
[1736028109204,0.27344,3657.6,3657.2,0.27347]
[1736028109395,0.27346,3657.3,3657.2,0.27347]
[1736028111203,0.27347,3657.2,3657.1,1.50397]
[1736028111595,0.4333,3657.5,3657.1,1.50397]
[1736028111802,0.27347,3657.3,3657.2,0.27347]
[1736028112104,0.4333,3657.5,3657.1,1.2305]
[1736028112403,0.27347,3657.2,3657.1,1.2305]
[1736028115196,0.27347,3657.2,3657.1,1.50398]
[1736028115799,0.27347,3657.2,3657.1,1.2305]
[1736028116199,0.27347,3657.2,3657.1,1.50398]
[1736028116605,3.6411,3657.5,3657.2,0.27347]
[1736028116606,0.27347,3657.3,3657.2,0.27347]
[1736028118503,1.26075561,3657.4,3657.3,0.27346]
[1736028118706,3.48125,3657.5,3657.4,0.27345]
[1736028118906,0.27346,3657.4,3657.3,0.27346]
[1736028121106,1.26075561,3657.4,3657.3,0.27346]
[1736028122806,0.98729561,3657.4,3657.3,0.27346]
[1736028123011,3.2078,3657.5,3657.4,0.27345]
[1736028123208,3.2078,3657.5,3657.4,1.26074561]
[1736028124211,3.2078,3657.5,3657.4,0.27345]
[1736028127016,0.27343,3657.7,3657.6,0.27344]
[1736028128415,3.2078,3657.8,3657.1,1.2305]
[1736028128616,0.27344,3657.7,3657.6,0.27344]
[1736028130914,3.48123,3657.8,3657.6,0.27343]
[1736028131120,0.27343,3657.7,3657.6,0.27343]
[1736028133216,0.27345,3657.5,3657.4,0.27345]
[1736028133415,0.27345,3657.5,3657.3,0.27346]
[1736028133613,0.27345,3657.5,3657.1,0.8149]
[1736028133814,0.27345,3657.5,3657.4,0.27345]
[1736028134919,0.27344,3657.6,3657.5,0.27344]
[1736028135317,3.2078,3657.9,3657.1,0.8149]
[1736028135520,0.27345,3657.5,3657.4,0.27345]
[1736028135920,3.2078,3657.9,3657.1,0.8149]
[1736028136120,3.2078,3657.9,3657.5,0.27345]
[1736028136314,0.27344,3657.6,3657.5,0.27345]
[1736028139516,2.13992762,3657.8,3657.1,0.8149]
[1736028139717,2.13992762,3657.8,3657.7,0.27343]
[1736028140021,2.41334762,3657.8,3657.7,0.27343]
[1736028140417,2.13992762,3657.8,3657.7,0.27343]
[1736028140620,2.41334762,3657.8,3657.7,0.27343]
[1736028141311,0.27342,3657.8,3657.7,0.27343]
[1736028141512,2.13992762,3657.9,3657.3,0.4215]
[1736028141821,0.27343,3657.7,3657.6,0.27343]
[1736028142315,2.13992762,3657.9,3657.3,0.4215]
[1736028142512,0.27344,3657.6,3657.5,0.27344]
[1736028143613,0.4455,3657.8,3657.3,0.4215]
[1736028143825,0.27344,3657.7,3657.6,0.27344]
[1736028144021,2.41336762,3657.7,3657.6,0.27344]
[1736028146326,3.40050033,3657.7,3657.6,0.27344]
[1736028147126,0.27344,3657.6,3657.5,0.27344]
[1736028148325,2.1438315,3657.6,3657.5,0.27345]
[1736028149426,2.4172715,3657.6,3657.5,0.27345]
[1736028150830,2.4172715,3657.6,3657.5,4.27994752]
[1736028152629,0.27344,3657.6,3657.5,4.27994752]
[1736028153424,4.20319522,3657.7,3657.5,4.00649752]
[1736028153625,4.20319522,3657.7,3657.6,0.27344]
[1736028153626,4.47663522,3657.7,3657.6,0.27344]
[1736028155324,0.27344,3657.6,3657.5,4.27993752]
[1736028155527,0.27344,3657.6,3657.5,6.72243898]
[1736028158028,0.27344,3657.6,3657.5,4.28130834]
[1736028158335,0.27344,3657.6,3657.5,4.00786834]
[1736028158533,0.27344,3657.6,3657.5,4.28131834]
[1736028159324,3.48950251,3657.6,3657.5,4.28131834]
[1736028160530,3.48950251,3657.6,3657.5,4.00786834]
[1736028161036,3.48950251,3657.6,3657.5,4.28131834]
[1736028162434,3.89979388,3657.6,3657.5,10.45686732]
[1736028162830,3.89979388,3657.6,3657.5,10.73031732]
[1736028164033,3.48950251,3657.6,3657.5,10.45686732]
[1736028166034,3.48950251,3657.6,3657.5,10.73031732]
[1736028166335,3.48950251,3657.6,3657.5,10.45686732]
[1736028166740,0.68373198,3657.6,3657.5,10.45686732]
[1736028167341,0.68373198,3657.6,3657.5,10.73031732]
[1736028168041,0.27344,3657.6,3657.5,10.73031732]
[1736028169443,0.68373198,3657.6,3657.5,10.45686732]
[1736028170535,0.68373198,3657.6,3657.5,10.73031732]
[1736028170736,3.89686152,3657.6,3657.5,10.73031732]
[1736028175143,0.68373198,3657.6,3657.5,10.73031732]
[1736028175831,0.68373198,3657.6,3657.5,10.45686732]
[1736028176244,0.27344,3657.6,3657.5,10.45686732]
[1736028176846,0.27344,3657.6,3657.5,10.73031732]
[1736028177043,0.27344,3657.6,3657.5,10.45686732]
[1736028177346,0.68373198,3657.6,3657.5,10.45686732]
[1736028178938,0.68373198,3657.6,3657.5,10.73031732]
[1736028179545,0.68373198,3657.6,3657.5,10.45686732]
[1736028179944,3.89624343,3657.6,3657.5,10.45686732]
[1736028180143,3.89624343,3657.6,3657.5,10.73031732]
[1736028181450,0.68373198,3657.6,3657.5,10.73031732]
[1736028182149,0.68373198,3657.6,3657.5,10.45686732]
[1736028182947,0.27344,3657.6,3657.5,10.45686732]
[1736028183446,0.27344,3657.6,3657.5,10.73031732]
[1736028184548,0.68373198,3657.6,3657.5,10.73031732]
[1736028185551,1.10903198,3657.6,3657.5,10.73031732]
[1736028185752,1.10903198,3657.6,3657.5,10.45686732]
[1736028186346,1.10903198,3657.6,3657.5,10.73031732]
[1736028187653,0.68373198,3657.6,3657.5,10.73031732]
[1736028188151,0.68373198,3657.6,3657.5,10.45686732]
[1736028188541,0.68373198,3657.6,3657.5,4.00786834]
[1736028189458,0.68373198,3657.6,3657.5,4.28131834]
[1736028189761,0.68373198,3657.6,3657.5,4.00786834]
[1736028191462,0.68373198,3657.6,3657.5,10.46900396]
[1736028195365,3.89448859,3657.6,3657.5,4.00786834]
[1736028196468,3.89448859,3657.6,3657.5,4.28131834]
[1736028196865,0.68373198,3657.6,3657.5,4.28131834]
[1736028198169,0.27344,3657.6,3657.5,4.28131834]
[1736028199868,0.68373198,3657.6,3657.5,4.28131834]
[1736028200770,0.68373198,3657.6,3657.5,4.00786834]
[1736028201070,0.68373198,3657.6,3657.5,4.28131834]
[1736028201574,0.68373198,3657.6,3657.5,4.00786834]
[1736028201771,0.68373198,3657.6,3657.5,4.28131834]
[1736028204669,0.68373198,3657.6,3657.5,4.00786834]
[1736028204878,0.68373198,3657.6,3657.5,4.28131834]
[1736028209277,0.68373198,3657.6,3657.5,10.74269181]
[1736028210083,0.68373198,3657.6,3657.5,10.46924181]
[1736028210876,0.68373198,3657.6,3657.5,4.00786834]
[1736028211384,0.68373198,3657.6,3657.5,4.28131834]
[1736028215585,0.68373198,3657.6,3657.5,10.74265916]
[1736028216379,0.41029198,3657.6,3657.5,10.74265916]
[1736028216981,1.73018334,3657.7,3657.6,0.27344]
[1736028217182,5.36010418,3657.9,3657.8,0.27342]
[1736028217386,5.36010418,3657.9,3657.8,1.26055271]
[1736028217783,2.62234418,3657.9,3657.8,6.26055271]
[1736028217985,1.19920418,3657.9,3657.8,6.26055271]
[1736028218485,2.14205494,3658.3,3657.8,18.24603753]
[1736028218804,1.58838494,3658.3,3658.2,5.45545542]
[1736028218981,4.94e-06,3658.3,3658.2,5.45545542]
[1736028219183,2.57497735,3658.4,3658.2,10.18206542]
[1736028219493,0.66652735,3658.4,3658.3,0.27339]
[1736028219787,7.35e-06,3658.4,3658.3,0.27339]
[1736028219988,6.39319145,3659.3,3659.2,0.27332]
[1736028220289,1.26041271,3659.7,3659.2,4.19493271]
[1736028220591,0.27329,3659.6,3659.4,0.2733]
[1736028220785,0.98713271,3659.7,3659.4,0.98713271]
[1736028221086,0.2733,3659.5,3659.4,1.26043271]
[1736028221283,0.2733,3659.5,3659.4,0.98713271]
[1736028221483,0.2733,3659.5,3659.4,7.42218353]
[1736028221691,0.2733,3659.5,3659.4,7.69548353]
[1736028221883,1.26042271,3659.7,3659.4,7.69548353]
[1736028222592,0.98713271,3659.7,3659.4,7.69548353]
[1736028222790,0.27329,3659.6,3659.4,7.69548353]
[1736028223089,0.27329,3659.6,3659.5,4.28429725]
[1736028223688,1.26042271,3659.7,3659.5,4.55759725]
[1736028224591,1.26042271,3659.7,3659.5,0.2733]
[1736028225682,1.26042271,3659.7,3659.4,5.27142996]
[1736028225683,1.26042271,3659.7,3659.4,0.98713271]
[1736028225889,1.26042271,3659.7,3659.4,1.26043271]
[1736028228092,0.98713271,3659.7,3659.5,0.27329]
[1736028228482,1.26041271,3659.7,3659.5,0.27329]
[1736028228682,0.98713271,3659.7,3659.5,0.27329]
[1736028229892,1.26041271,3659.7,3659.5,0.27329]
[1736028232090,0.98713271,3659.7,3659.4,0.98713271]
[1736028232292,0.27329,3659.6,3659.4,1.26043271]
[1736028233293,0.27329,3659.6,3659.4,0.98713271]
[1736028233493,0.27329,3659.6,3659.5,0.2733]
[1736028233796,0.27329,3659.6,3659.4,0.98713271]
[1736028233997,0.98713271,3659.7,3659.4,0.98713271]
[1736028234391,0.27329,3659.6,3659.4,1.26043271]
[1736028234593,0.27329,3659.6,3659.5,0.2733]
[1736028235192,0.71889,3659.6,3659.5,0.2733]
[1736028235397,0.71889,3659.6,3659.4,1.26043271]
[1736028235893,0.98713271,3659.5,3659.1,3.2078]
[1736028236198,0.27332,3659.2,3659.1,3.2078]
[1736028236704,1.10052,3659.2,3659.1,3.2078]
[1736028237911,0.8272,3659.2,3658.6,3.2078]
[1736028238198,0.27337,3658.5,3658.4,4.28429725]
[1736028238503,1.26050271,3658.5,3658.4,3.61259725]
[1736028239199,1.69420271,3658.5,3658.4,3.61259725]
[1736028239792,0.27339,3658.2,3658.1,3.2078]
[1736028239997,1.42083271,3658.5,3657.9,0.27341]
[1736028239998,0.27341,3658.1,3657.9,0.27341]
[1736028240399,0.98713271,3658.3,3657.9,0.27341]
[1736028240697,0.27341,3658.0,3657.9,0.27341]
[1736028240999,0.2734,3658.1,3658.0,0.27341]
[1736028241901,0.6852,3658.2,3658.1,0.2734]
[1736028243002,0.4118,3658.2,3658.1,0.2734]
[1736028247697,0.4337,3658.5,3658.4,0.27338]
[1736028247898,0.8453,3658.5,3658.4,1.26051271]
[1736028251803,0.4211,3658.6,3658.5,0.27337]
[1736028252010,0.27334,3658.9,3658.8,0.27335]
[1736028253110,1.81073271,3659.0,3658.7,0.27335]
[1736028253414,0.98713271,3658.8,3658.7,0.27335]
[1736028254202,0.27336,3658.7,3658.4,0.98713271]
[1736028254410,1.26049271,3658.8,3658.6,0.27336]
[1736028254810,0.27336,3658.7,3658.5,0.27337]
[1736028255005,0.27336,3658.7,3658.6,0.27336]
[1736028255211,1.26048271,3658.8,3658.6,0.27336]
[1736028255511,1.26048271,3658.8,3658.2,4.19493271]
[1736028255714,1.26048271,3658.8,3658.7,0.27336]
[1736028257912,1.26048271,3658.8,3658.6,0.27336]
[1736028258113,1.26048271,3658.8,3658.7,0.27336]
[1736028259613,0.8236,3659.0,3658.1,9.64285082]
[1736028259614,1.81073271,3659.0,3658.1,9.64285082]
[1736028259914,0.27339,3658.3,3658.2,0.27339]
[1736028260214,0.27339,3658.3,3658.2,6.70844082]
[1736028261216,0.27338,3658.4,3658.3,0.27338]
[1736028261418,0.4215,3658.5,3658.4,0.27338]
[1736028261717,0.27339,3658.2,3658.1,3.2078]
[1736028261914,0.27341,3658.0,3657.9,6.43505082]
[1736028262313,1.26054271,3658.0,3657.9,6.43505082]
[1736028263017,0.27342,3657.9,3657.8,6.43505082]
[1736028263212,0.69592,3657.9,3657.8,6.43505082]
[1736028264512,0.8823,3658.1,3657.8,0.98713271]
[1736028264718,1.15571,3658.1,3658.0,1.26054271]
[1736028265518,1.15571,3658.1,3658.0,0.27341]
[1736028266722,1.15571,3658.1,3657.9,0.27341]
[1736028267111,0.8823,3658.1,3657.9,0.27341]
[1736028267425,0.27343,3657.7,3657.6,0.27344]
[1736028278639,0.8823,3658.1,3657.5,0.98713271]
[1736028278838,0.27343,3657.8,3657.7,0.27343]
[1736028279937,0.69843,3657.8,3657.7,0.27343]
[1736028281444,0.69843,3657.8,3657.7,1.26056271]
[1736028284150,0.69843,3657.8,3657.7,5.82221234]
[1736028284535,0.69843,3657.8,3657.7,4.83507963]
[1736028285141,0.69843,3657.8,3657.7,0.27343]
[1736028300254,0.69843,3657.8,3657.7,4.83739342]
[1736028301556,0.69843,3657.8,3657.7,11.27244424]
[1736028302455,1.68556271,3657.8,3657.7,10.99901424]
[1736028303961,1.41213271,3657.8,3657.5,6.70849082]
[1736028304161,1.26057271,3657.6,3657.5,6.70849082]
[1736028305161,1.26057271,3657.6,3657.5,6.43505082]
[1736028305463,1.26057271,3657.6,3657.5,4.84302497]
[1736028306155,0.69843,3657.8,3657.7,0.27343]
[1736028306358,0.425,3657.8,3657.7,1.26056271]
[1736028306566,0.69842,3657.8,3657.7,1.26056271]
[1736028306758,0.425,3657.8,3657.7,1.26056271]
[1736028307157,0.69842,3657.8,3657.7,1.26056271]
[1736028307359,0.425,3657.8,3657.7,1.26056271]
[1736028307757,4.0901,3658.1,3658.0,0.27341]
[1736028307758,3.6432,3658.1,3658.0,0.27341]
[1736028307964,3.6432,3658.1,3658.0,1.26054271]
[1736028307965,0.4354,3658.1,3658.0,1.26054271]
[1736028308864,0.4354,3658.1,3658.0,25.69834316]
[1736028309458,3.2033037,3658.6,3658.0,25.42493316]
[1736028309658,3.2033037,3658.6,3658.5,1.26050271]
[1736028309860,3.2033037,3658.6,3658.5,4.46830271]
[1736028310355,4.25816646,3658.8,3658.5,4.46830271]
[1736028310356,3.2033037,3658.7,3658.5,10.64824854]
[1736028310558,3.2033037,3658.7,3658.6,1.69439271]
[1736028311865,0.4393,3659.0,3658.9,0.27334]
[1736028312763,0.71263,3659.0,3658.9,0.27334]
[1736028312954,0.71263,3659.0,3658.9,11.28549877]